[Event "Titled Tuesday Blitz August 31 2021"]
[White "Abdusattorov, Nodirbek"]
[Black "Ivanchuk, Vasyl"]
[WhiteFideId "14204118"]
[BlackFideId "14100010"]
[WhiteElo "2662"]
[BlackElo "2710"]
[Result "1-0"]
[Round "04"]
[TimeControl "180+1"]
[Date "2021.08.31"]
[WhiteClock "0:00:54"]
[BlackClock "0:00:03"]

1. c4 {[%clk 0:03:00]}  Nf6 {[%clk 0:02:59]} 2. Nc3 {[%clk 0:02:59]}  e6 {[%clk 0:02:58]} 3. d4 {[%clk 0:02:58]}  Bb4 {[%clk 0:02:58]} 4. g3 {[%clk 0:02:58]}  O-O {[%clk 0:02:52]} 5. Bg2 {[%clk 0:02:58]}  d6 {[%clk 0:02:53]} 6. Nf3 {[%clk 0:02:55]}  Bxc3+ {[%clk 0:02:51]} 7. bxc3 {[%clk 0:02:56]}  Nc6 {[%clk 0:02:51]} 8. Qd3 {[%clk 0:02:57]}  e5 {[%clk 0:02:44]} 9. Nd2 {[%clk 0:02:57]}  Bd7 {[%clk 0:02:25]} 10. O-O {[%clk 0:02:55]}  b6 {[%clk 0:02:25]} 11. e4 {[%clk 0:02:52]}  Na5 {[%clk 0:01:58]} 12. f4 {[%clk 0:02:52]}  c5 {[%clk 0:01:57]} 13. fxe5 {[%clk 0:02:52]}  dxe5 {[%clk 0:01:57]} 14. d5 {[%clk 0:02:53]}  Ne8 {[%clk 0:01:51]} 15. Nb3 {[%clk 0:02:41]}  Nb7 {[%clk 0:01:51]} 16. h3 {[%clk 0:02:20]}  Ned6 {[%clk 0:01:51]} 17. g4 {[%clk 0:02:20]}  b5 {[%clk 0:01:37]} 18. Nd2 {[%clk 0:02:20]}  bxc4 {[%clk 0:01:21]} 19. Qg3 {[%clk 0:02:20]}  f6 {[%clk 0:00:54]} 20. g5 {[%clk 0:02:20]}  Qe7 {[%clk 0:00:54]} 21. gxf6 {[%clk 0:01:55]}  Rxf6 {[%clk 0:00:54]} 22. Rxf6 {[%clk 0:01:55]}  Qxf6 {[%clk 0:00:54]} 23. Rb1 {[%clk 0:01:56]}  Rf8 {[%clk 0:00:42]} 24. Kh2 {[%clk 0:01:49]}  Nd8 {[%clk 0:00:16]} 25. Nf3 {[%clk 0:01:44]}  N8f7 {[%clk 0:00:16]} 26. Ng5 {[%clk 0:01:32]}  Nxg5 {[%clk 0:00:15]} 27. Bxg5 {[%clk 0:01:33]}  Qg6 {[%clk 0:00:15]} 28. Be7 {[%clk 0:01:30]}  Qxg3+ {[%clk 0:00:09]} 29. Kxg3 {[%clk 0:01:31]}  Nb5 {[%clk 0:00:08]} 30. Bxf8 {[%clk 0:01:30]}  Kxf8 {[%clk 0:00:09]} 31. Kf2 {[%clk 0:01:04]}  Ke7 {[%clk 0:00:08]} 32. Ke3 {[%clk 0:01:01]}  Kd6 {[%clk 0:00:08]} 33. Kd2 {[%clk 0:01:01]}  Kc7 {[%clk 0:00:08]} 34. Rf1 {[%clk 0:00:59]}  Nd6 {[%clk 0:00:08]} 35. Rf8 {[%clk 0:01:00]}  Be8 {[%clk 0:00:08]} 36. Rg8 {[%clk 0:00:58]}  Bg6 {[%clk 0:00:08]} 37. Rxg7+ {[%clk 0:00:58]}  Kb6 {[%clk 0:00:08]} 38. Rd7 {[%clk 0:00:56]}  Nxe4+ {[%clk 0:00:07]} 39. Bxe4 {[%clk 0:00:56]}  Bxe4 {[%clk 0:00:07]} 40. h4 {[%clk 0:00:56]}  a5 {[%clk 0:00:05]} 41. Ke3 {[%clk 0:00:56]}  Bd3 {[%clk 0:00:05]} 42. h5 {[%clk 0:00:54]}  Kb5 {[%clk 0:00:05]} 43. h6 {[%clk 0:00:53]}  Ka4 {[%clk 0:00:05]} 44. Ra7 {[%clk 0:00:53]}  Bf5 {[%clk 0:00:04]} 45. d6 {[%clk 0:00:53]}  Kb5 {[%clk 0:00:04]} 46. d7 {[%clk 0:00:53]}  Bxd7 {[%clk 0:00:03]} 47. Rxd7 {[%clk 0:00:54]} 1-0


[Site "https://www.chess.com"]

[Event "Titled Tuesday Blitz August 31 2021"]
[White "Aldokhin, Ivan"]
[Black "Njal28"]
[WhiteFideId "24115720"]
[WhiteElo "2306"]
[BlackElo "2947"]
[Result "0-1"]
[Round "04"]
[TimeControl "180+1"]
[Date "2021.08.31"]
[WhiteClock "0:00:13"]
[BlackClock "0:01:26"]

1. e4 {[%clk 0:02:59]}  c5 {[%clk 0:02:53]} 2. Nf3 {[%clk 0:02:58]}  Nc6 {[%clk 0:02:53]} 3. d4 {[%clk 0:02:59]}  cxd4 {[%clk 0:02:54]} 4. Nxd4 {[%clk 0:03:00]}  Nf6 {[%clk 0:02:54]} 5. Nc3 {[%clk 0:03:00]}  h5 {[%clk 0:02:53]} 6. Bg5 {[%clk 0:02:58]}  Qa5 {[%clk 0:02:53]} 7. Bxf6 {[%clk 0:02:44]}  gxf6 {[%clk 0:02:54]} 8. Nb3 {[%clk 0:02:45]}  Qe5 {[%clk 0:02:50]} 9. Nd5 {[%clk 0:02:32]}  e6 {[%clk 0:02:46]} 10. Nc3 {[%clk 0:02:24]}  Bb4 {[%clk 0:02:41]} 11. Qd3 {[%clk 0:02:01]}  f5 {[%clk 0:02:37]} 12. O-O-O {[%clk 0:01:43]}  Bxc3 {[%clk 0:02:35]} 13. Qxc3 {[%clk 0:01:42]}  Qxc3 {[%clk 0:02:35]} 14. bxc3 {[%clk 0:01:43]}  fxe4 {[%clk 0:02:36]} 15. c4 {[%clk 0:01:27]}  Ke7 {[%clk 0:02:30]} 16. Be2 {[%clk 0:01:18]}  h4 {[%clk 0:02:28]} 17. Rhe1 {[%clk 0:01:14]}  f5 {[%clk 0:02:28]} 18. f3 {[%clk 0:01:14]}  Ne5 {[%clk 0:01:35]} 19. fxe4 {[%clk 0:01:12]}  fxe4 {[%clk 0:01:36]} 20. Bf1 {[%clk 0:01:06]}  Ng4 {[%clk 0:01:36]} 21. Rxe4 {[%clk 0:00:51]}  Nf2 {[%clk 0:01:35]} 22. Rde1 {[%clk 0:00:50]}  Nxe4 {[%clk 0:01:35]} 23. Rxe4 {[%clk 0:00:51]}  b6 {[%clk 0:01:35]} 24. Rg4 {[%clk 0:00:40]}  Bb7 {[%clk 0:01:36]} 25. Rg7+ {[%clk 0:00:40]}  Kd6 {[%clk 0:01:36]} 26. c5+ {[%clk 0:00:38]}  bxc5 {[%clk 0:01:35]} 27. Na5 {[%clk 0:00:35]}  Bc6 {[%clk 0:01:35]} 28. Be2 {[%clk 0:00:29]}  Rag8 {[%clk 0:01:32]} 29. Rf7 {[%clk 0:00:22]}  Rxg2 {[%clk 0:01:31]} 30. Nxc6 {[%clk 0:00:19]}  Rxe2 {[%clk 0:01:30]} 31. Nxa7 {[%clk 0:00:19]}  Rxh2 {[%clk 0:01:31]} 32. Nb5+ {[%clk 0:00:19]}  Kc6 {[%clk 0:01:31]} 33. a4 {[%clk 0:00:19]}  h3 {[%clk 0:01:32]} 34. Kb2 {[%clk 0:00:15]}  Rg2 {[%clk 0:01:30]} 35. Na7+ {[%clk 0:00:15]}  Kc7 {[%clk 0:01:28]} 36. Nb5+ {[%clk 0:00:15]}  Kd8 {[%clk 0:01:29]} 37. Nd6 {[%clk 0:00:14]}  h2 {[%clk 0:01:29]} 38. Rf3 {[%clk 0:00:13]}  h1=Q {[%clk 0:01:26]} 0-1


[Site "https://www.chess.com"]

[Event "Titled Tuesday Blitz August 31 2021"]
[White "Baches Garcia, Guillermo"]
[Black "Ider, Borya"]
[WhiteFideId "2209764"]
[BlackFideId "4901134"]
[WhiteElo "2514"]
[BlackElo "2512"]
[Result "0-1"]
[Round "04"]
[TimeControl "180+1"]
[Date "2021.08.31"]
[WhiteClock "0:00:07"]
[BlackClock "0:00:57"]

1. e4 {[%clk 0:03:00]}  e6 {[%clk 0:02:59]} 2. d4 {[%clk 0:03:00]}  d5 {[%clk 0:02:59]} 3. exd5 {[%clk 0:03:01]}  exd5 {[%clk 0:02:59]} 4. Nf3 {[%clk 0:03:02]}  c6 {[%clk 0:03:00]} 5. Bd3 {[%clk 0:03:00]}  Bd6 {[%clk 0:03:00]} 6. O-O {[%clk 0:02:56]}  Ne7 {[%clk 0:03:00]} 7. c4 {[%clk 0:02:47]}  O-O {[%clk 0:02:59]} 8. Nc3 {[%clk 0:02:43]}  Bf5 {[%clk 0:02:48]} 9. Re1 {[%clk 0:02:35]}  Bxd3 {[%clk 0:02:48]} 10. Qxd3 {[%clk 0:02:35]}  dxc4 {[%clk 0:02:49]} 11. Qxc4 {[%clk 0:02:36]}  Ng6 {[%clk 0:02:42]} 12. Bg5 {[%clk 0:02:26]}  Qa5 {[%clk 0:02:40]} 13. Ne4 {[%clk 0:02:17]}  Bc7 {[%clk 0:02:36]} 14. Nc5 {[%clk 0:02:02]}  b6 {[%clk 0:02:20]} 15. b4 {[%clk 0:01:42]}  Qb5 {[%clk 0:02:20]} 16. Qxb5 {[%clk 0:01:30]}  cxb5 {[%clk 0:02:21]} 17. Ne4 {[%clk 0:01:25]}  f6 {[%clk 0:02:15]} 18. Rac1 {[%clk 0:01:20]}  Na6 {[%clk 0:01:55]} 19. Bd2 {[%clk 0:01:12]}  Rad8 {[%clk 0:01:50]} 20. Rc6 {[%clk 0:01:06]}  Rfe8 {[%clk 0:01:49]} 21. Nc3 {[%clk 0:00:56]}  Rxe1+ {[%clk 0:01:23]} 22. Bxe1 {[%clk 0:00:56]}  Ne7 {[%clk 0:01:23]} 23. Re6 {[%clk 0:00:50]}  Kf7 {[%clk 0:01:24]} 24. Re2 {[%clk 0:00:46]}  Nxb4 {[%clk 0:01:15]} 25. Nxb5 {[%clk 0:00:46]}  Nbd5 {[%clk 0:01:14]} 26. Nxa7 {[%clk 0:00:37]}  Nf4 {[%clk 0:01:08]} 27. Rxe7+ {[%clk 0:00:35]}  Kxe7 {[%clk 0:01:07]} 28. Nc6+ {[%clk 0:00:35]}  Ke6 {[%clk 0:01:07]} 29. Nxd8+ {[%clk 0:00:35]}  Bxd8 {[%clk 0:01:08]} 30. Kf1 {[%clk 0:00:33]}  Kd5 {[%clk 0:01:08]} 31. Bd2 {[%clk 0:00:30]}  Ne6 {[%clk 0:01:08]} 32. Ke2 {[%clk 0:00:29]}  Nxd4+ {[%clk 0:01:08]} 33. Nxd4 {[%clk 0:00:25]}  Kxd4 {[%clk 0:01:08]} 34. Bb4 {[%clk 0:00:20]}  Kc4 {[%clk 0:01:05]} 35. Bf8 {[%clk 0:00:19]}  g6 {[%clk 0:01:05]} 36. Ke3 {[%clk 0:00:17]}  Kc3 {[%clk 0:01:05]} 37. Ke4 {[%clk 0:00:16]}  Kc4 {[%clk 0:01:05]} 38. g4 {[%clk 0:00:15]}  Kc3 {[%clk 0:01:03]} 39. Kd5 {[%clk 0:00:14]}  f5 {[%clk 0:01:01]} 40. gxf5 {[%clk 0:00:14]}  gxf5 {[%clk 0:01:02]} 41. f4 {[%clk 0:00:12]}  Bc7 {[%clk 0:01:01]} 42. Ke6 {[%clk 0:00:12]}  Bxf4 {[%clk 0:01:01]} 43. Kxf5 {[%clk 0:00:12]}  Bxh2 {[%clk 0:01:02]} 44. Kg5 {[%clk 0:00:12]}  Kb2 {[%clk 0:00:59]} 45. a4 {[%clk 0:00:11]}  Kb3 {[%clk 0:01:00]} 46. Be7 {[%clk 0:00:09]}  Kxa4 {[%clk 0:00:59]} 47. Bd8 {[%clk 0:00:09]}  b5 {[%clk 0:00:59]} 48. Kh6 {[%clk 0:00:09]}  b4 {[%clk 0:00:57]} 49. Kxh7 {[%clk 0:00:09]}  Be5 {[%clk 0:00:56]} 50. Kg6 {[%clk 0:00:07]}  b3 {[%clk 0:00:57]} 0-1


[Site "https://www.chess.com"]

[Event "Titled Tuesday Blitz August 31 2021"]
[White "Batsuren, Dambasuren"]
[Black "Bazarov, Konstantin"]
[WhiteFideId "4902920"]
[BlackFideId "4137000"]
[WhiteElo "2371"]
[BlackElo "2122"]
[Result "1-0"]
[Round "04"]
[TimeControl "180+1"]
[Date "2021.08.31"]
[WhiteClock "0:00:58"]
[BlackClock "0:00:31"]

1. c4 {[%clk 0:03:00]}  c6 {[%clk 0:02:57]} 2. Nf3 {[%clk 0:02:59]}  d5 {[%clk 0:02:58]} 3. e3 {[%clk 0:02:59]}  Nf6 {[%clk 0:02:58]} 4. b3 {[%clk 0:03:00]}  Bg4 {[%clk 0:02:56]} 5. Bb2 {[%clk 0:02:59]}  Nbd7 {[%clk 0:02:55]} 6. h3 {[%clk 0:03:00]}  Bh5 {[%clk 0:02:54]} 7. Nc3 {[%clk 0:03:00]}  e5 {[%clk 0:02:53]} 8. g4 {[%clk 0:02:59]}  Bg6 {[%clk 0:02:52]} 9. d4 {[%clk 0:02:56]}  exd4 {[%clk 0:02:44]} 10. Nxd4 {[%clk 0:02:57]}  Qa5 {[%clk 0:02:40]} 11. a3 {[%clk 0:02:51]}  Bd6 {[%clk 0:02:29]} 12. b4 {[%clk 0:02:49]}  Qc7 {[%clk 0:02:24]} 13. cxd5 {[%clk 0:02:47]}  cxd5 {[%clk 0:02:17]} 14. Ndb5 {[%clk 0:02:44]}  Qc6 {[%clk 0:02:15]} 15. Rc1 {[%clk 0:02:14]}  d4 {[%clk 0:01:45]} 16. Ne4 {[%clk 0:02:14]}  Bc5 {[%clk 0:01:17]} 17. Nxf6+ {[%clk 0:01:37]}  Nxf6 {[%clk 0:01:14]} 18. Rxc5 {[%clk 0:01:24]}  Qxh1 {[%clk 0:01:12]} 19. Nc7+ {[%clk 0:01:25]}  Ke7 {[%clk 0:01:11]} 20. Re5+ {[%clk 0:01:15]}  Kd6 {[%clk 0:01:01]} 21. Qxd4+ {[%clk 0:01:07]}  Kxc7 {[%clk 0:01:00]} 22. Rc5+ {[%clk 0:01:00]}  Qc6 {[%clk 0:00:50]} 23. Bb5 {[%clk 0:00:58]}  Qxc5 {[%clk 0:00:34]} 24. Qxc5+ {[%clk 0:00:59]}  Kb8 {[%clk 0:00:31]} 25. Be5# {[%clk 0:00:58]} 1-0


[Site "https://www.chess.com"]

[Event "Titled Tuesday Blitz August 31 2021"]
[White "Bernadskiy, Vitaliy"]
[Black "Petriashvili, Nikoloz"]
[WhiteFideId "14100371"]
[BlackFideId "13611216"]
[WhiteElo "2510"]
[BlackElo "2430"]
[Result "0-1"]
[Round "04"]
[TimeControl "180+1"]
[Date "2021.08.31"]
[WhiteClock "0:00:03"]
[BlackClock "0:00:05"]

1. e4 {[%clk 0:03:00]}  c5 {[%clk 0:03:00]} 2. Nf3 {[%clk 0:03:00]}  Nc6 {[%clk 0:03:01]} 3. Nc3 {[%clk 0:02:58]}  Nf6 {[%clk 0:02:59]} 4. Bb5 {[%clk 0:02:56]}  g6 {[%clk 0:02:59]} 5. O-O {[%clk 0:02:56]}  Bg7 {[%clk 0:02:59]} 6. Re1 {[%clk 0:02:56]}  O-O {[%clk 0:02:59]} 7. d3 {[%clk 0:02:56]}  d6 {[%clk 0:02:54]} 8. Bxc6 {[%clk 0:02:53]}  bxc6 {[%clk 0:02:54]} 9. e5 {[%clk 0:02:54]}  Nd5 {[%clk 0:02:54]} 10. h3 {[%clk 0:02:41]}  Nxc3 {[%clk 0:02:50]} 11. bxc3 {[%clk 0:02:42]}  Be6 {[%clk 0:02:50]} 12. Bf4 {[%clk 0:02:38]}  Qd7 {[%clk 0:02:49]} 13. Qd2 {[%clk 0:02:36]}  Bd5 {[%clk 0:02:47]} 14. Nh2 {[%clk 0:02:35]}  dxe5 {[%clk 0:02:19]} 15. Bxe5 {[%clk 0:02:33]}  f6 {[%clk 0:02:19]} 16. Bf4 {[%clk 0:02:16]}  e5 {[%clk 0:02:19]} 17. Bh6 {[%clk 0:02:16]}  c4 {[%clk 0:02:19]} 18. d4 {[%clk 0:02:08]}  exd4 {[%clk 0:01:54]} 19. cxd4 {[%clk 0:01:46]}  c3 {[%clk 0:01:23]} 20. Qc1 {[%clk 0:01:45]}  Rfe8 {[%clk 0:01:20]} 21. Bxg7 {[%clk 0:01:41]}  Kxg7 {[%clk 0:01:16]} 22. Ng4 {[%clk 0:01:39]}  g5 {[%clk 0:01:16]} 23. Qa3 {[%clk 0:01:35]}  h5 {[%clk 0:00:59]} 24. Ne3 {[%clk 0:01:34]}  g4 {[%clk 0:00:59]} 25. hxg4 {[%clk 0:01:16]}  hxg4 {[%clk 0:00:59]} 26. Qxc3 {[%clk 0:01:16]}  f5 {[%clk 0:00:53]} 27. Qd2 {[%clk 0:01:10]}  Re4 {[%clk 0:00:41]} 28. Nxd5 {[%clk 0:01:07]}  cxd5 {[%clk 0:00:39]} 29. Rxe4 {[%clk 0:01:04]}  dxe4 {[%clk 0:00:38]} 30. Qg5+ {[%clk 0:00:58]}  Kf7 {[%clk 0:00:38]} 31. Rb1 {[%clk 0:00:57]}  Rc8 {[%clk 0:00:24]} 32. Qh6 {[%clk 0:00:34]}  Rg8 {[%clk 0:00:21]} 33. c4 {[%clk 0:00:29]}  g3 {[%clk 0:00:15]} 34. d5 {[%clk 0:00:25]}  gxf2+ {[%clk 0:00:15]} 35. Kxf2 {[%clk 0:00:26]}  Rg6 {[%clk 0:00:06]} 36. Qh8 {[%clk 0:00:20]}  Qc7 {[%clk 0:00:04]} 37. Qh7+ {[%clk 0:00:19]}  Rg7 {[%clk 0:00:04]} 38. Qxf5+ {[%clk 0:00:19]}  Kg8 {[%clk 0:00:03]} 39. Qxe4 {[%clk 0:00:17]}  Qc5+ {[%clk 0:00:03]} 40. Kf1 {[%clk 0:00:04]}  Rf7+ {[%clk 0:00:03]} 41. Ke2 {[%clk 0:00:04]}  Re7 {[%clk 0:00:04]} 42. Qxe7 {[%clk 0:00:03]}  Qxe7+ {[%clk 0:00:05]} 43. Kd3 {[%clk 0:00:03]}  Qh7+ {[%clk 0:00:05]} 0-1


[Site "https://www.chess.com"]

[Event "Titled Tuesday Blitz August 31 2021"]
[White "Blomqvist, Erik"]
[Black "Terry, Renato"]
[WhiteFideId "1709437"]
[BlackFideId "3803457"]
[WhiteElo "2460"]
[BlackElo "2581"]
[Result "0-1"]
[Round "04"]
[TimeControl "180+1"]
[Date "2021.08.31"]
[WhiteClock "0:00:03"]
[BlackClock "0:00:03"]

1. e4 {[%clk 0:02:57]}  e6 {[%clk 0:02:59]} 2. d4 {[%clk 0:02:52]}  d5 {[%clk 0:03:00]} 3. Nd2 {[%clk 0:02:49]}  Be7 {[%clk 0:02:59]} 4. Ngf3 {[%clk 0:02:36]}  Nf6 {[%clk 0:02:59]} 5. Bd3 {[%clk 0:02:33]}  c5 {[%clk 0:02:59]} 6. exd5 {[%clk 0:02:09]}  Qxd5 {[%clk 0:02:58]} 7. dxc5 {[%clk 0:02:07]}  Qxc5 {[%clk 0:02:58]} 8. O-O {[%clk 0:01:55]}  Nbd7 {[%clk 0:02:59]} 9. Qe2 {[%clk 0:01:46]}  Qc7 {[%clk 0:02:56]} 10. a4 {[%clk 0:01:40]}  b6 {[%clk 0:02:47]} 11. Nb3 {[%clk 0:01:34]}  Bb7 {[%clk 0:02:46]} 12. a5 {[%clk 0:01:33]}  O-O {[%clk 0:02:45]} 13. a6 {[%clk 0:01:24]}  Bd5 {[%clk 0:02:42]} 14. Nbd4 {[%clk 0:01:23]}  Rac8 {[%clk 0:02:40]} 15. Bg5 {[%clk 0:00:54]}  Nc5 {[%clk 0:02:01]} 16. Bb5 {[%clk 0:00:52]}  Nh5 {[%clk 0:01:51]} 17. Bxe7 {[%clk 0:00:47]}  Qxe7 {[%clk 0:01:52]} 18. Qe3 {[%clk 0:00:44]}  Qf6 {[%clk 0:01:46]} 19. Rfe1 {[%clk 0:00:38]}  Nf4 {[%clk 0:01:40]} 20. Bf1 {[%clk 0:00:35]}  Rfd8 {[%clk 0:01:29]} 21. Ne5 {[%clk 0:00:35]}  Ne4 {[%clk 0:00:55]} 22. Nd3 {[%clk 0:00:20]}  Nxd3 {[%clk 0:00:44]} 23. Bxd3 {[%clk 0:00:21]}  Nc5 {[%clk 0:00:42]} 24. Nb5 {[%clk 0:00:20]}  Rd7 {[%clk 0:00:27]} 25. b4 {[%clk 0:00:17]}  Nxd3 {[%clk 0:00:27]} 26. cxd3 {[%clk 0:00:18]}  Rcd8 {[%clk 0:00:12]} 27. Rac1 {[%clk 0:00:17]}  h6 {[%clk 0:00:10]} 28. f3 {[%clk 0:00:16]}  Qb2 {[%clk 0:00:08]} 29. Rb1 {[%clk 0:00:15]}  Qf6 {[%clk 0:00:08]} 30. Rbc1 {[%clk 0:00:14]}  Qf5 {[%clk 0:00:08]} 31. Rc3 {[%clk 0:00:13]}  Bxf3 {[%clk 0:00:08]} 32. Nxa7 {[%clk 0:00:10]}  Bxg2 {[%clk 0:00:08]} 33. Kxg2 {[%clk 0:00:07]}  Rxa7 {[%clk 0:00:08]} 34. Qxb6 {[%clk 0:00:07]}  Qd5+ {[%clk 0:00:03]} 35. Kg1 {[%clk 0:00:06]}  Rad7 {[%clk 0:00:02]} 36. a7 {[%clk 0:00:06]}  Qg5+ {[%clk 0:00:02]} 37. Kf2 {[%clk 0:00:05]}  Qd2+ {[%clk 0:00:02]} 38. Re2 {[%clk 0:00:04]}  Qxc3 {[%clk 0:00:03]} 39. Qb8 {[%clk 0:00:03]}  Qf6+ {[%clk 0:00:03]} 40. Kg2 {[%clk 0:00:03]}  Qg5+ {[%clk 0:00:03]} 41. Kf1 {[%clk 0:00:03]}  Qd5 {[%clk 0:00:03]} 0-1


[Site "https://www.chess.com"]

[Event "Titled Tuesday Blitz August 31 2021"]
[White "Borsuk, Konstantin"]
[Black "Pandey Srishti"]
[WhiteFideId "14113406"]
[BlackFideId "35093290"]
[WhiteElo "2382"]
[BlackElo "1816"]
[Result "1-0"]
[Round "04"]
[TimeControl "180+1"]
[Date "2021.08.31"]
[WhiteClock "0:00:12"]
[BlackClock "0:00:20"]

1. d4 {[%clk 0:03:00]}  d5 {[%clk 0:02:57]} 2. c4 {[%clk 0:03:00]}  c6 {[%clk 0:02:57]} 3. Nc3 {[%clk 0:03:00]}  Nf6 {[%clk 0:02:57]} 4. e3 {[%clk 0:03:00]}  e6 {[%clk 0:02:56]} 5. Nf3 {[%clk 0:02:58]}  Nbd7 {[%clk 0:02:56]} 6. Qc2 {[%clk 0:02:58]}  Bd6 {[%clk 0:02:51]} 7. g4 {[%clk 0:02:58]}  h6 {[%clk 0:02:48]} 8. Rg1 {[%clk 0:02:55]}  e5 {[%clk 0:02:45]} 9. cxd5 {[%clk 0:02:40]}  cxd5 {[%clk 0:02:46]} 10. h3 {[%clk 0:02:21]}  e4 {[%clk 0:02:30]} 11. Nh4 {[%clk 0:02:21]}  g6 {[%clk 0:02:15]} 12. f4 {[%clk 0:02:14]}  exf3 {[%clk 0:02:10]} 13. Nxf3 {[%clk 0:02:14]}  Qe7 {[%clk 0:02:02]} 14. Bd2 {[%clk 0:02:06]}  Nb6 {[%clk 0:01:59]} 15. Ne5 {[%clk 0:01:43]}  Bxe5 {[%clk 0:01:48]} 16. dxe5 {[%clk 0:01:43]}  Qxe5 {[%clk 0:01:48]} 17. Nb5 {[%clk 0:01:42]}  O-O {[%clk 0:01:43]} 18. Qc7 {[%clk 0:01:06]}  Qxc7 {[%clk 0:01:01]} 19. Nxc7 {[%clk 0:01:06]}  Rb8 {[%clk 0:01:01]} 20. Bc3 {[%clk 0:01:06]}  Ne4 {[%clk 0:00:49]} 21. Bd4 {[%clk 0:01:05]}  Bd7 {[%clk 0:00:44]} 22. b3 {[%clk 0:00:38]}  Bc6 {[%clk 0:00:42]} 23. a4 {[%clk 0:00:31]}  Rbc8 {[%clk 0:00:35]} 24. Nb5 {[%clk 0:00:30]}  Bxb5 {[%clk 0:00:34]} 25. axb5 {[%clk 0:00:30]}  Ra8 {[%clk 0:00:18]} 26. h4 {[%clk 0:00:24]}  Nd7 {[%clk 0:00:18]} 27. h5 {[%clk 0:00:25]}  g5 {[%clk 0:00:17]} 28. Bd3 {[%clk 0:00:25]}  b6 {[%clk 0:00:17]} 29. Bxe4 {[%clk 0:00:22]}  dxe4 {[%clk 0:00:18]} 30. Rf1 {[%clk 0:00:20]}  Nc5 {[%clk 0:00:17]} 31. Bxc5 {[%clk 0:00:16]}  bxc5 {[%clk 0:00:17]} 32. Rf5 {[%clk 0:00:16]}  Rfc8 {[%clk 0:00:17]} 33. Kd2 {[%clk 0:00:15]}  c4 {[%clk 0:00:18]} 34. b4 {[%clk 0:00:15]}  c3+ {[%clk 0:00:16]} 35. Kc2 {[%clk 0:00:15]}  Kg7 {[%clk 0:00:16]} 36. Rc5 {[%clk 0:00:14]}  Rxc5 {[%clk 0:00:17]} 37. bxc5 {[%clk 0:00:14]}  Rc8 {[%clk 0:00:17]} 38. c6 {[%clk 0:00:14]}  Rc7 {[%clk 0:00:18]} 39. Kxc3 {[%clk 0:00:13]}  Kf6 {[%clk 0:00:18]} 40. Kd4 {[%clk 0:00:14]}  Ke6 {[%clk 0:00:19]} 41. Kxe4 {[%clk 0:00:14]}  Kd6 {[%clk 0:00:19]} 42. Kd4 {[%clk 0:00:15]}  f6 {[%clk 0:00:19]} 43. e4 {[%clk 0:00:15]}  Ke6 {[%clk 0:00:19]} 44. Kc5 {[%clk 0:00:15]}  Ke5 {[%clk 0:00:20]} 45. Rf1 {[%clk 0:00:14]}  Kxe4 {[%clk 0:00:19]} 46. Rxf6 {[%clk 0:00:14]}  Ke5 {[%clk 0:00:20]} 47. Rxh6 {[%clk 0:00:13]}  Kf4 {[%clk 0:00:21]} 48. Rd6 {[%clk 0:00:12]}  Kxg4 {[%clk 0:00:22]} 49. h6 {[%clk 0:00:13]}  Kf3 {[%clk 0:00:21]} 50. Rd7 {[%clk 0:00:13]}  Rc8 {[%clk 0:00:21]} 51. Rxa7 {[%clk 0:00:12]}  g4 {[%clk 0:00:22]} 52. Rg7 {[%clk 0:00:12]}  g3 {[%clk 0:00:22]} 53. b6 {[%clk 0:00:13]}  g2 {[%clk 0:00:22]} 54. b7 {[%clk 0:00:13]}  Rc7 {[%clk 0:00:22]} 55. Rxg2 {[%clk 0:00:13]}  Kxg2 {[%clk 0:00:21]} 56. b8=Q {[%clk 0:00:12]}  Rf7 {[%clk 0:00:21]} 57. Qg8+ {[%clk 0:00:12]}  Kh1 {[%clk 0:00:20]} 1-0


[Site "https://www.chess.com"]

[Event "Titled Tuesday Blitz August 31 2021"]
[White "Csonka, Balazs"]
[Black "Chen, Max"]
[WhiteFideId "742910"]
[BlackFideId "2622440"]
[WhiteElo "2404"]
[BlackElo "2474"]
[Result "1-0"]
[Round "04"]
[TimeControl "180+1"]
[Date "2021.08.31"]
[WhiteClock "0:00:09"]
[BlackClock "0:00:19"]

1. d4 {[%clk 0:03:00]}  Nf6 {[%clk 0:02:57]} 2. Bg5 {[%clk 0:03:01]}  d5 {[%clk 0:02:54]} 3. e3 {[%clk 0:03:00]}  e6 {[%clk 0:02:52]} 4. Nd2 {[%clk 0:02:59]}  Be7 {[%clk 0:02:52]} 5. Bd3 {[%clk 0:03:00]}  b6 {[%clk 0:02:51]} 6. Ngf3 {[%clk 0:02:58]}  Bb7 {[%clk 0:02:52]} 7. Ne5 {[%clk 0:02:54]}  Nbd7 {[%clk 0:02:51]} 8. f4 {[%clk 0:02:54]}  O-O {[%clk 0:02:49]} 9. Qf3 {[%clk 0:02:52]}  c5 {[%clk 0:02:49]} 10. c3 {[%clk 0:02:50]}  Re8 {[%clk 0:02:43]} 11. O-O {[%clk 0:02:45]}  Rc8 {[%clk 0:02:33]} 12. Rae1 {[%clk 0:02:25]}  Nf8 {[%clk 0:02:20]} 13. f5 {[%clk 0:02:08]}  exf5 {[%clk 0:02:10]} 14. Bxf5 {[%clk 0:02:05]}  Rc7 {[%clk 0:02:10]} 15. Qh3 {[%clk 0:01:57]}  Ne4 {[%clk 0:02:00]} 16. Nxf7 {[%clk 0:01:40]}  Nxd2 {[%clk 0:01:57]} 17. Nxd8 {[%clk 0:01:34]}  Bxg5 {[%clk 0:01:57]} 18. Ne6 {[%clk 0:01:18]}  Nxf1 {[%clk 0:01:49]} 19. Nxf8 {[%clk 0:01:15]}  Nxe3 {[%clk 0:01:45]} 20. Qxh7+ {[%clk 0:00:41]}  Kxf8 {[%clk 0:01:43]} 21. Qh8+ {[%clk 0:00:41]}  Kf7 {[%clk 0:01:31]} 22. Bg6+ {[%clk 0:00:41]}  Kxg6 {[%clk 0:01:31]} 23. Qxe8+ {[%clk 0:00:41]}  Rf7 {[%clk 0:01:31]} 24. Rxe3 {[%clk 0:00:37]}  Bxe3+ {[%clk 0:01:30]} 25. Qxe3 {[%clk 0:00:38]}  cxd4 {[%clk 0:01:17]} 26. Qxd4 {[%clk 0:00:37]}  Re7 {[%clk 0:01:14]} 27. Qg4+ {[%clk 0:00:35]}  Kf7 {[%clk 0:01:13]} 28. Qf5+ {[%clk 0:00:33]}  Ke8 {[%clk 0:01:12]} 29. h4 {[%clk 0:00:33]}  Rf7 {[%clk 0:01:07]} 30. Qe6+ {[%clk 0:00:31]}  Re7 {[%clk 0:01:07]} 31. Qg6+ {[%clk 0:00:29]}  Kd7 {[%clk 0:01:06]} 32. h5 {[%clk 0:00:28]}  Kc7 {[%clk 0:00:59]} 33. Kh2 {[%clk 0:00:27]}  Bc6 {[%clk 0:00:58]} 34. g4 {[%clk 0:00:25]}  Bd7 {[%clk 0:00:56]} 35. Kg3 {[%clk 0:00:23]}  Be8 {[%clk 0:00:48]} 36. Qg5 {[%clk 0:00:22]}  Kd6 {[%clk 0:00:48]} 37. h6 {[%clk 0:00:21]}  gxh6 {[%clk 0:00:39]} 38. Qxh6+ {[%clk 0:00:22]}  Re6 {[%clk 0:00:40]} 39. Qf8+ {[%clk 0:00:21]}  Kc6 {[%clk 0:00:38]} 40. g5 {[%clk 0:00:19]}  Kd7 {[%clk 0:00:38]} 41. Qf4 {[%clk 0:00:17]}  Kc6 {[%clk 0:00:37]} 42. Qb8 {[%clk 0:00:17]}  a5 {[%clk 0:00:37]} 43. Qc8+ {[%clk 0:00:15]}  Kd6 {[%clk 0:00:36]} 44. Qd8+ {[%clk 0:00:15]}  Kc6 {[%clk 0:00:36]} 45. a4 {[%clk 0:00:15]}  Bg6 {[%clk 0:00:34]} 46. b4 {[%clk 0:00:15]}  axb4 {[%clk 0:00:33]} 47. cxb4 {[%clk 0:00:16]}  Be8 {[%clk 0:00:32]} 48. Qc8+ {[%clk 0:00:14]}  Kd6 {[%clk 0:00:31]} 49. a5 {[%clk 0:00:11]}  bxa5 {[%clk 0:00:30]} 50. bxa5 {[%clk 0:00:12]}  Re3+ {[%clk 0:00:29]} 51. Kf2 {[%clk 0:00:11]}  Re4 {[%clk 0:00:25]} 52. a6 {[%clk 0:00:10]}  Bd7 {[%clk 0:00:20]} 53. Qb8+ {[%clk 0:00:10]}  Kc5 {[%clk 0:00:19]} 54. a7 {[%clk 0:00:09]} 1-0


[Site "https://www.chess.com"]